[Event "-chT Youth Countries 2019"]
[Site "Wuerzburg"]
[Date "2019.10.04"]
[Round "5.5"]
[White "Khamenya, Vitalia"]
[Black "Moenster, Madita"]
[Result "1/2-1/2"]
[ECO "B93"]
[WhiteElo "1908"]
[BlackElo "1916"]
[Annotator "NA"]
[PlyCount "61"]
[EventDate "2019.10.02"]
[EventType "team-tourn"]
[EventRounds "7"]
[EventCountry "GER"]
[SourceTitle "playchess.com"]
[Source "ChessBase"]
[SourceQuality "1"]
[WhiteTeam "Bayern 2"]
[BlackTeam "Niedersachsen"]
[TimeControl "40/5400+30:1800+30"]

1. e4 {[%emt 0:00:00]} c5 {[%emt 0:00:00]} 2. Nf3 {[%emt 0:00:00]} d6 {[%emt 0:00:00]} 3. d4 {[%emt 0:00:00]} cxd4 {[%emt 0:00:00]} 4. Nxd4 {[%emt 0:00:00]} Nf6 {[%emt 0:00:00]} 5. Nc3 {[%emt 0:00:00]} a6 {[%emt 0:00:06]} 6. f4 {[%emt 0:00:00]} e5 {[%emt 0:00:31]} 7. Nf3 {[%emt 0:00:02]} Nc6 {[%emt 0:02:26]} 8. a4 {[%emt 0:07:40]} Be7 {[%emt 0:03:46]} 9. Bc4 {[%emt 0:00:40]} O-O {[%emt 0:03:29]} 10. O-O {[%emt 0:00:40]} Qc7 {[%emt 0:04:20]} 11. Ba2 {[%emt 0:13:23]} Bd7 {[%emt 0:07:04]} 12. Qe1 {[%emt 0:04:02]} Nb4 {[%emt 0:16:53]} 13. Bb3 {[%emt 0:02:23]} a5 {[%emt 0:10:52]} 14. f5 {[%emt 0:04:15]} Bc6 {[%emt 0:02:16]} 15. Qg3 {[%emt 0:05:39]} Nxe4 {[%emt 0:08:01]} 16. Nxe4 {[%emt 0:01:41]} Bxe4 {[%emt 0:00:08]} 17. Bh6 {[%emt 0:00:57]} Bf6 {[%emt 0:02:31]} 18. Ng5 {[%emt 0:26:41]} Qc5+ {[%emt 0:15:04]} 19. Kh1 {[%emt 0:00:48]} Qc6 {[%emt 0:00:53]} 20. Rf2 {[%emt 0:03:57]} Kh8 {[%emt 0:12:07]} 21. Bxg7+ {[%emt 0:09:25]} Bxg7 {[%emt 0:00:09]} 22. Qh4 {[%emt 0:00:25]} h6 {[%emt 0:01:01]} 23. f6 {[%emt 0:10:38]} d5 {[%emt 0:03:13]} 24. Nxe4 {[%emt 0:03:37]} dxe4 {[%emt 0:00:27]} 25. Raf1 {[%emt 0:00:09]} Nd5 {[%emt 0:02:13]} 26. Bxd5 {[%emt 0:02:04]} Qxd5 {[%emt 0:00:08]} 27. fxg7+ {[%emt 0:00:14]} Kxg7 {[%emt 0:00:06]} 28. Qf6+ {[%emt 0:00:41]} Kh7 {[%emt 0:00:52]} 29. Qf5+ {[%emt 0:03:34]} Kg7 30. Qf6+ {[%emt 0:00:30]} Kh7 31. Qf5+ {[%emt 0:00:30] normal} 1/2-1/2

[Event "-chT Youth Countries 2019"]
[Site "Wuerzburg"]
[Date "2019.10.04"]
[Round "5.5"]
[White "Kobald, Jacqueline"]
[Black "Schiewe, Nadin"]
[Result "1/2-1/2"]
[ECO "B07"]
[WhiteElo "1884"]
[BlackElo "1593"]
[Annotator "NA"]
[PlyCount "82"]
[EventDate "2019.10.02"]
[EventType "team-tourn"]
[EventRounds "7"]
[EventCountry "GER"]
[SourceTitle "playchess.com"]
[Source "ChessBase"]
[SourceQuality "1"]
[WhiteTeam "Württemberg"]
[BlackTeam "Brandenburg/Berlin"]
[TimeControl "40/5400+30:1800+30"]

1. e4 {[%emt 0:00:00]} d6 {[%emt 0:00:00]} 2. d4 {[%emt 0:00:00]} Nf6 {[%emt 0:00:00]} 3. Nc3 {[%emt 0:01:46]} g6 {[%emt 0:00:28]} 4. h3 {[%emt 0:03:37]} c6 {[%emt 0:03:20]} 5. a4 {[%emt 0:04:12]} Nbd7 {[%emt 0:01:49]} 6. Nf3 {[%emt 0:00:31]} Bg7 {[%emt 0:02:11]} 7. e5 {[%emt 0:15:34]} dxe5 {[%emt 0:01:43]} 8. dxe5 {[%emt 0:00:17]} Nd5 {[%emt 0:06:40]} 9. Nxd5 {[%emt 0:02:07]} cxd5 {[%emt 0:00:16]} 10. Qxd5 {[%emt 0:00:23]} Nxe5 {[%emt 0:02:03]} 11. Bb5+ {[%emt 0:03:32]} Nd7 {[%emt 0:00:17]} 12. O-O {[%emt 0:00:47]} O-O {[%emt 0:01:10]} 13. Rd1 {[%emt 0:06:04]} Qc7 {[%emt 0:09:49]} 14. Qc4 {[%emt 0:11:38]} Qxc4 {[%emt 0:01:16]} 15. Bxc4 {[%emt 0:00:05]} Ne5 {[%emt 0:09:09]} 16. Nxe5 {[%emt 0:05:34]} Bxe5 {[%emt 0:00:08]} 17. Bh6 {[%emt 0:00:16]} Bg7 {[%emt 0:02:56]} 18. Bxg7 {[%emt 0:00:11]} Kxg7 {[%emt 0:00:08]} 19. Rd2 {[%emt 0:03:16]} b6 {[%emt 0:08:47]} 20. Rad1 {[%emt 0:03:01]} e6 {[%emt 0:03:27]} 21. Bb5 {[%emt 0:04:52]} Bb7 {[%emt 0:06:02]} 22. Rd7 {[%emt 0:00:24]} Rab8 {[%emt 0:00:19]} 23. Rc7 {[%emt 0:03:07]} Rfc8 {[%emt 0:02:49]} 24. Rdd7 {[%emt 0:01:20]} Rxc7 {[%emt 0:00:30]} 25. Rxc7 {[%emt 0:00:08]} a6 {[%emt 0:02:43]} 26. Bd3 {[%emt 0:01:14]} a5 {[%emt 0:07:22]} 27. f4 {[%emt 0:02:27]} Bd5 {[%emt 0:04:01]} 28. Kf2 {[%emt 0:04:25]} h5 {[%emt 0:01:56]} 29. g3 {[%emt 0:03:38]} Rd8 {[%emt 0:02:34]} 30. Bc4 {[%emt 0:08:13]} Kf6 {[%emt 0:07:00]} 31. Bxd5 {[%emt 0:01:37]} Rxd5 {[%emt 0:00:10]} 32. Ke3 {[%emt 0:02:09]} Rc5 {[%emt 0:04:29]} 33. Rxc5 {[%emt 0:00:29]} bxc5 {[%emt 0:00:05]} 34. Ke4 {[%emt 0:07:11]} Ke7 {[%emt 0:00:30]} 35. g4 {[%emt 0:01:08]} hxg4 {[%emt 0:01:00]} 36. hxg4 {[%emt 0:00:17]} Kd6 {[%emt 0:00:45]} 37. g5 {[%emt 0:00:26]} Kd7 {[%emt 0:03:30]} 38. Ke5 {[%emt 0:01:10]} Ke7 {[%emt 0:01:19]} 39. Ke4 {[%emt 0:00:50]} Kd6 {[%emt 0:00:38]} 40. b3 {[%emt 0:01:09]} Kd7 {[%emt 0:01:59]} 41. c3 {[%emt 0:20:31]} Kd6 {[%emt 0:02:56] normal} 1/2-1/2

[Event "-chT Youth Countries 2019"]
[Site "Wuerzburg"]
[Date "2019.10.04"]
[Round "5.5"]
[White "Amato, Cristiano"]
[Black "Roste, Hugo"]
[Result "1/2-1/2"]
[ECO "B23"]
[WhiteElo "1746"]
[BlackElo "1339"]
[Annotator "NA"]
[PlyCount "105"]
[EventDate "2019.10.02"]
[EventType "team-tourn"]
[EventRounds "7"]
[EventCountry "GER"]
[SourceTitle "playchess.com"]
[Source "ChessBase"]
[SourceQuality "1"]
[WhiteTeam "Baden 2"]
[BlackTeam "Mecklenburg-Vorpommern"]
[TimeControl "40/5400+30:1800+30"]

1. e4 {[%emt 0:00:00]} c5 {[%emt 0:00:00]} 2. Nc3 {[%emt 0:00:00]} e6 {[%emt 0:00:00]} 3. f4 {[%emt 0:00:01]} Nc6 {[%emt 0:00:36]} 4. Nf3 {[%emt 0:00:41]} a6 {[%emt 0:01:33]} 5. a4 {[%emt 0:00:45]} Qc7 {[%emt 0:01:28]} 6. Bc4 {[%emt 0:00:26]} Qxf4 {[%emt 0:09:24]} 7. d3 {[%emt 0:00:13]} Qc7 {[%emt 0:00:24]} 8. O-O {[%emt 0:00:20]} d6 {[%emt 0:00:43]} 9. Qe2 {[%emt 0:03:05]} Nf6 {[%emt 0:02:13]} 10. Bf4 {[%emt 0:00:44]} Be7 {[%emt 0:01:43]} 11. Qf2 {[%emt 0:02:19]} O-O {[%emt 0:02:03]} 12. h3 {[%emt 0:01:29]} b6 {[%emt 0:02:33]} 13. g4 {[%emt 0:01:08]} e5 {[%emt 0:01:17]} 14. Bd2 {[%emt 0:00:50]} h6 {[%emt 0:02:01]} 15. Rac1 {[%emt 0:10:06]} Bd8 {[%emt 0:06:17]} 16. Nd5 {[%emt 0:05:11]} Nxd5 {[%emt 0:00:40]} 17. exd5 {[%emt 0:00:15]} Ne7 {[%emt 0:02:36]} 18. Qg2 {[%emt 0:04:22]} Bd7 {[%emt 0:02:28]} 19. Nxe5 {[%emt 0:01:35]} dxe5 {[%emt 0:07:30]} 20. d6 {[%emt 0:00:08]} Qc6 {[%emt 0:00:22]} 21. dxe7 {[%emt 0:00:46]} Qxg2+ {[%emt 0:00:20]} 22. Kxg2 {[%emt 0:00:08]} Bxe7 {[%emt 0:00:20]} 23. Rce1 {[%emt 0:01:08]} Bd6 {[%emt 0:00:57]} 24. Bc3 {[%emt 0:00:10]} Rae8 {[%emt 0:04:16]} 25. a5 {[%emt 0:00:19]} b5 {[%emt 0:00:41]} 26. Bd5 {[%emt 0:00:20]} Re7 {[%emt 0:02:33]} 27. Re4 {[%emt 0:05:33]} Kh7 {[%emt 0:01:59]} 28. Rfe1 {[%emt 0:01:44]} f6 {[%emt 0:00:53]} 29. d4 {[%emt 0:02:31]} cxd4 {[%emt 0:01:04]} 30. Bxd4 {[%emt 0:00:07]} Be6 {[%emt 0:00:55]} 31. Bxe6 {[%emt 0:01:10]} Rxe6 {[%emt 0:00:06]} 32. Bb6 {[%emt 0:00:56]} Rc8 {[%emt 0:01:03]} 33. c3 {[%emt 0:00:41]} Bc7 {[%emt 0:00:47]} 34. Bxc7 {[%emt 0:00:43]} Rxc7 {[%emt 0:00:06]} 35. Rd1 {[%emt 0:00:07]} Kg6 {[%emt 0:04:01]} 36. Re2 {[%emt 0:00:59]} Kf7 {[%emt 0:00:18]} 37. Red2 {[%emt 0:00:17]} Ke7 {[%emt 0:00:40]} 38. Rd8 {[%emt 0:00:42]} Ra7 {[%emt 0:02:33]} 39. Rg8 {[%emt 0:00:23]} Kf7 {[%emt 0:00:49]} 40. Rdd8 {[%emt 0:00:52]} Ree7 {[%emt 0:02:28]} 41. Rgf8+ {[%emt 0:31:03]} Kg6 {[%emt 0:31:41]} 42. Rd1 {[%emt 0:00:18]} Red7 {[%emt 0:04:33]} 43. Rd8 {[%emt 0:00:09]} Rxd1 {[%emt 0:01:11]} 44. Rxd1 {[%emt 0:00:11]} h5 {[%emt 0:03:01]} 45. Rd6 {[%emt 0:02:54]} hxg4 {[%emt 0:01:14]} 46. hxg4 {[%emt 0:00:06]} Kg5 {[%emt 0:00:35]} 47. Kg3 {[%emt 0:00:14]} g6 {[%emt 0:00:30]} 48. Rd5 {[%emt 0:00:13]} Kh6 {[%emt 0:02:41]} 49. Kh4 {[%emt 0:01:00]} e4 {[%emt 0:02:56]} 50. Rd6 {[%emt 0:00:55]} Re7 {[%emt 0:00:55]} 51. Rxf6 {[%emt 0:00:21]} e3 {[%emt 0:01:43]} 52. g5+ {[%emt 0:00:06]} Kg7 {[%emt 0:00:13]} 53. Rf1 {[%emt 0:00:18] normal} 1/2-1/2

[Event "-chT Youth Countries 2019"]
[Site "Wuerzburg"]
[Date "2019.10.04"]
[Round "5.6"]
[White "Costa, Leonardo"]
[Black "Peglau, Charis"]
[Result "1-0"]
[ECO "C02"]
[WhiteElo "1959"]
[BlackElo "1827"]
[Annotator "NA"]
[PlyCount "71"]
[EventDate "2019.10.02"]
[EventType "team-tourn"]
[EventRounds "7"]
[EventCountry "GER"]
[SourceTitle "playchess.com"]
[Source "ChessBase"]
[SourceQuality "1"]
[WhiteTeam "Bayern 1"]
[BlackTeam "Sachsen"]
[TimeControl "40/5400+30:1800+30"]

1. e4 {[%emt 0:00:00]} e6 {[%emt 0:00:00]} 2. d4 {[%emt 0:00:00]} d5 {[%emt 0:00:00]} 3. e5 {[%emt 0:00:00]} c5 {[%emt 0:00:00]} 4. c3 {[%emt 0:00:06]} Nc6 {[%emt 0:00:00]} 5. Nf3 {[%emt 0:00:21]} Qb6 {[%emt 0:00:09]} 6. a3 {[%emt 0:00:32]} Bd7 {[%emt 0:00:29]} 7. b4 {[%emt 0:05:08]} cxb4 {[%emt 0:01:19]} 8. axb4 {[%emt 0:00:26]} a6 {[%emt 0:00:31]} 9. Bd3 {[%emt 0:07:28]} Nge7 {[%emt 0:00:29]} 10. O-O {[%emt 0:02:17]} Ng6 {[%emt 0:02:56]} 11. g3 {[%emt 0:04:43]} Be7 {[%emt 0:01:21]} 12. Nbd2 {[%emt 0:02:19]} O-O {[%emt 0:01:30]} 13. h4 {[%emt 0:00:46]} Rfc8 {[%emt 0:03:01]} 14. Ng5 {[%emt 0:03:50]} Nf8 {[%emt 0:09:38]} 15. Nb3 {[%emt 0:07:37]} h6 {[%emt 0:00:47]} 16. Nh3 {[%emt 0:01:43]} Na7 {[%emt 0:00:45]} 17. Nc5 {[%emt 0:06:48]} Bb5 {[%emt 0:01:23]} 18. Bxb5 {[%emt 0:02:19]} Nxb5 {[%emt 0:02:10]} 19. Qg4 {[%emt 0:02:07]} Kh8 {[%emt 0:05:30]} 20. Nf4 {[%emt 0:10:19]} Nxc3 {[%emt 0:06:16]} 21. Nh5 {[%emt 0:02:07]} g6 {[%emt 0:05:33]} 22. Bxh6 {[%emt 0:01:23]} Ne4 {[%emt 0:05:13]} 23. Nxe4 {[%emt 0:12:34]} dxe4 {[%emt 0:00:13]} 24. Qf4 {[%emt 0:00:37]} Kg8 {[%emt 0:08:32]} 25. Nf6+ {[%emt 0:05:56]} Kh8 {[%emt 0:00:15]} 26. Ng4 {[%emt 0:03:51]} Kg8 {[%emt 0:05:13]} 27. Bg5 {[%emt 0:02:12]} Bxg5 {[%emt 0:07:08]} 28. hxg5 {[%emt 0:00:08]} Nh7 {[%emt 0:17:16]} 29. Nh6+ {[%emt 0:01:58]} Kh8 {[%emt 0:00:06]} 30. Qxf7 {[%emt 0:00:06]} Rc7 {[%emt 0:00:59]} 31. Qxg6 {[%emt 0:02:00]} Rg7 {[%emt 0:00:19]} 32. Qh5 {[%emt 0:00:46]} Qxd4 {[%emt 0:03:03]} 33. g6 {[%emt 0:00:43]} e3 {[%emt 0:00:25]} 34. gxh7 {[%emt 0:02:19]} exf2+ {[%emt 0:01:29]} 35. Kg2 {[%emt 0:01:52]} Qe4+ {[%emt 0:01:40]} 36. Qf3 {[%emt 0:00:47] normal} 1-0

[Event "-chT Youth Countries 2019"]
[Site "Wuerzburg"]
[Date "2019.10.04"]
[Round "5.6"]
[White "Dietz, Kristin"]
[Black "Rempe, Jonas"]
[Result "1/2-1/2"]
[ECO "C89"]
[WhiteElo "1948"]
[BlackElo "1816"]
[Annotator "NA"]
[PlyCount "126"]
[EventDate "2019.10.02"]
[EventType "team-tourn"]
[EventRounds "7"]
[EventCountry "GER"]
[SourceTitle "playchess.com"]
[Source "ChessBase"]
[SourceQuality "1"]
[WhiteTeam "Sachsen-Anhalt"]
[BlackTeam "Schleswig-Holstein"]
[TimeControl "40/5400+30:1800+30"]

1. e4 {[%emt 0:00:00]} e5 {[%emt 0:00:00]} 2. Nf3 {[%emt 0:00:00]} Nc6 {[%emt 0:00:00]} 3. Bb5 {[%emt 0:00:00]} a6 {[%emt 0:00:00]} 4. Ba4 {[%emt 0:00:02]} Nf6 {[%emt 0:00:00]} 5. O-O {[%emt 0:00:13]} Be7 {[%emt 0:00:00]} 6. Re1 {[%emt 0:00:19]} b5 {[%emt 0:00:00]} 7. Bb3 {[%emt 0:00:07]} O-O {[%emt 0:00:00]} 8. c3 {[%emt 0:00:53]} d5 {[%emt 0:00:00]} 9. exd5 {[%emt 0:04:10]} Nxd5 {[%emt 0:00:01]} 10. Nxe5 {[%emt 0:08:59]} Nxe5 11. Rxe5 {[%emt 0:00:14]} c6 {[%emt 0:00:05]} 12. d4 {[%emt 0:03:58]} Bd6 {[%emt 0:00:07]} 13. Re1 {[%emt 0:01:15]} Qh4 {[%emt 0:00:05]} 14. g3 {[%emt 0:00:36]} Qh3 {[%emt 0:00:05]} 15. Qf3 Bg4 {[%emt 0:00:05]} 16. Qg2 {[%emt 0:01:27]} Qh5 {[%emt 0:00:04]} 17. Be3 {[%emt 0:05:11]} Bf3 {[%emt 0:04:55]} 18. Qf1 {[%emt 0:00:06]} f5 {[%emt 0:00:05]} 19. Nd2 {[%emt 0:00:56]} f4 {[%emt 0:00:21]} 20. Bxf4 {[%emt 0:05:46]} Rxf4 {[%emt 0:08:27]} 21. Nxf3 {[%emt 0:00:37]} Rxf3 {[%emt 0:00:22]} 22. Bd1 {[%emt 0:00:12]} Raf8 {[%emt 0:02:58]} 23. Bxf3 {[%emt 0:08:41]} Qxf3 {[%emt 0:00:09]} 24. Qe2 {[%emt 0:00:48]} Qxe2 {[%emt 0:03:43]} 25. Rxe2 {[%emt 0:00:02]} Kf7 {[%emt 0:00:01]} 26. Rae1 {[%emt 0:00:24]} Rd8 {[%emt 0:00:53]} 27. Kg2 {[%emt 0:01:48]} Rd7 {[%emt 0:00:17]} 28. h4 {[%emt 0:03:57]} Re7 {[%emt 0:01:56]} 29. Rxe7+ {[%emt 0:00:38]} Bxe7 {[%emt 0:00:07]} 30. f4 {[%emt 0:00:12]} Bf6 {[%emt 0:00:10]} 31. Kf3 {[%emt 0:00:59]} Nb6 {[%emt 0:00:47]} 32. Rh1 {[%emt 0:02:58]} Na4 {[%emt 0:09:03]} 33. Rh2 {[%emt 0:01:44]} g6 {[%emt 0:13:23]} 34. g4 {[%emt 0:01:34]} b4 {[%emt 0:00:53]} 35. g5 {[%emt 0:00:16]} bxc3 {[%emt 0:00:19]} 36. bxc3 {[%emt 0:00:11]} Bg7 {[%emt 0:00:12]} 37. Rc2 {[%emt 0:00:21]} Ke6 {[%emt 0:02:18]} 38. Ke4 {[%emt 0:00:26]} Bf8 {[%emt 0:04:11]} 39. c4 {[%emt 0:01:15]} Bg7 {[%emt 0:06:45]} 40. h5 {[%emt 0:15:47]} Nb6 {[%emt 0:03:54]} 41. h6 {[%emt 0:34:48]} Bf8 {[%emt 0:30:41]} 42. a4 {[%emt 0:12:12]} a5 {[%emt 0:17:34]} 43. d5+ {[%emt 0:02:08]} cxd5+ {[%emt 0:00:51]} 44. cxd5+ {[%emt 0:00:02]} Nxd5 {[%emt 0:00:02]} 45. Rc8 {[%emt 0:00:19]} Bd6 {[%emt 0:06:29]} 46. Re8+ {[%emt 0:04:49]} Be7 {[%emt 0:11:48]} 47. Rh8 {[%emt 0:00:36]} Bd6 {[%emt 0:00:02]} 48. Rxh7 {[%emt 0:01:12]} Bxf4 {[%emt 0:00:29]} 49. Rg7 {[%emt 0:00:17]} Bxg5 {[%emt 0:00:32]} 50. h7 {[%emt 0:02:09]} Nf6+ {[%emt 0:00:16]} 51. Kf3 {[%emt 0:00:46]} Nxh7 {[%emt 0:00:25]} 52. Rxh7 {[%emt 0:00:07]} Bd2 {[%emt 0:01:00]} 53. Kg4 {[%emt 0:02:04]} Bb4 {[%emt 0:00:30]} 54. Kg5 {[%emt 0:01:23]} Kd5 {[%emt 0:00:14]} 55. Rh3 {[%emt 0:00:00]} Kc4 {[%emt 0:00:00]} 56. Kxg6 {[%emt 0:00:00]} Bc5 {[%emt 0:00:00]} 57. Kf5 {[%emt 0:00:00]} Kb4 {[%emt 0:00:00]} 58. Rh4+ {[%emt 0:00:00]} Kb3 {[%emt 0:00:00]} 59. Ke5 {[%emt 0:00:00]} Bb4 {[%emt 0:00:00]} 60. Kd4 {[%emt 0:00:00]} Kxa4 {[%emt 0:00:00]} 61. Kc4 {[%emt 0:00:00]} Ka3 {[%emt 0:00:00]} 62. Rh2 {[%emt 0:00:00]} Be1 {[%emt 0:00:00]} 63. Rg2 {[%emt 0:00:00] normal} Bb4 {[%emt 0:00:00] normal} 1/2-1/2

[Event "-chT Youth Countries 2019"]
[Site "Wuerzburg"]
[Date "2019.10.04"]
[Round "5.6"]
[White "Brunner, Sophia"]
[Black "Butenandt, Svenja"]
[Result "1-0"]
[ECO "A46"]
[WhiteElo "1935"]
[BlackElo "1805"]
[Annotator "NA"]
[PlyCount "103"]
[EventDate "2019.10.02"]
[EventType "team-tourn"]
[EventRounds "7"]
[EventCountry "GER"]
[SourceTitle "playchess.com"]
[Source "ChessBase"]
[SourceQuality "1"]
[WhiteTeam "Niedersachsen"]
[BlackTeam "Bayern 2"]
[TimeControl "40/5400+30:1800+30"]

1. d4 {[%emt 0:00:00]} Nf6 {[%emt 0:00:00]} 2. Nf3 {[%emt 0:00:00]} e6 {[%emt 0:00:00]} 3. g3 {[%emt 0:00:13]} d5 {[%emt 0:00:05]} 4. c4 {[%emt 0:00:08]} Bb4+ {[%emt 0:00:29]} 5. Bd2 {[%emt 0:02:06]} Be7 {[%emt 0:00:23]} 6. Bg2 {[%emt 0:01:14]} c6 {[%emt 0:00:54]} 7. cxd5 {[%emt 0:04:27]} cxd5 {[%emt 0:01:04]} 8. O-O {[%emt 0:02:29]} O-O {[%emt 0:00:15]} 9. Nc3 {[%emt 0:00:47]} Nc6 {[%emt 0:02:08]} 10. Bg5 {[%emt 0:05:23]} h6 {[%emt 0:06:28]} 11. Bxf6 {[%emt 0:00:49]} Bxf6 {[%emt 0:00:06]} 12. e3 {[%emt 0:02:50]} b6 {[%emt 0:08:05]} 13. Rc1 {[%emt 0:05:34]} Ba6 {[%emt 0:04:19]} 14. Re1 {[%emt 0:00:22]} Qd7 {[%emt 0:10:56]} 15. Qa4 {[%emt 0:03:30]} Bb7 {[%emt 0:04:11]} 16. Bf1 {[%emt 0:13:06]} Rfd8 {[%emt 0:08:13]} 17. b4 {[%emt 0:05:21]} Rac8 {[%emt 0:09:11]} 18. Qb3 {[%emt 0:10:42]} Be7 {[%emt 0:12:23]} 19. a3 {[%emt 0:02:30]} Bf6 {[%emt 0:02:48]} 20. Ne2 {[%emt 0:03:50]} Ba6 {[%emt 0:06:57]} 21. Nf4 {[%emt 0:01:50]} Bxf1 {[%emt 0:00:25]} 22. Rxf1 {[%emt 0:00:13]} Qe7 {[%emt 0:02:40]} 23. Rc2 {[%emt 0:06:03]} Nb8 24. Rfc1 {[%emt 0:01:27]} Qb7 {[%emt 0:05:28]} 25. b5 {[%emt 0:03:35]} Nd7 {[%emt 0:01:34]} 26. Rc6 {[%emt 0:07:55]} Nb8 {[%emt 0:01:36]} 27. R6c3 {[%emt 0:01:44]} Be7 {[%emt 0:00:50]} 28. Ne5 {[%emt 0:03:28]} Bd6 {[%emt 0:03:11]} 29. Nfd3 {[%emt 0:01:11]} Rxc3 {[%emt 0:02:33]} 30. Qxc3 {[%emt 0:01:30]} Kf8 {[%emt 0:02:04]} 31. Nb4 {[%emt 0:07:01]} Bxe5 {[%emt 0:01:46]} 32. dxe5 {[%emt 0:00:07]} Nd7 {[%emt 0:00:39]} 33. Nd3 {[%emt 0:01:01]} Ke8 {[%emt 0:01:09]} 34. f4 {[%emt 0:02:40]} Nb8 {[%emt 0:01:33]} 35. Qc7 {[%emt 0:01:32]} Qxc7 {[%emt 0:00:23]} 36. Rxc7 {[%emt 0:00:01]} a6 {[%emt 0:00:56]} 37. Rb7 {[%emt 0:00:24]} axb5 {[%emt 0:00:17]} 38. Rxb6 {[%emt 0:00:06]} Ke7 {[%emt 0:00:29]} 39. Rxb5 {[%emt 0:00:13]} d4 {[%emt 0:00:26]} 40. Kf2 {[%emt 0:01:14]} Nc6 {[%emt 0:01:02]} 41. Rb7+ {[%emt 0:04:00]} Ke8 {[%emt 0:04:00]} 42. exd4 {[%emt 0:04:37]} Rxd4 {[%emt 0:01:16]} 43. Rb3 {[%emt 0:03:32]} Na5 {[%emt 0:02:09]} 44. Rc3 {[%emt 0:00:55]} Nc4 {[%emt 0:00:47]} 45. Ke2 {[%emt 0:02:18]} Kd8 {[%emt 0:04:05]} 46. Nb4 {[%emt 0:03:19]} Kd7 {[%emt 0:00:37]} 47. Nc2 {[%emt 0:00:48]} Rd2+ {[%emt 0:00:49]} 48. Ke1 {[%emt 0:00:17]} Rxc2 {[%emt 0:00:08]} 49. Rxc2 {[%emt 0:00:09]} Nxa3 {[%emt 0:00:03]} 50. Rc5 {[%emt 0:00:34]} f6 {[%emt 0:02:12]} 51. Kd2 {[%emt 0:00:32]} fxe5 {[%emt 0:00:05]} 52. fxe5 {[%emt 0:00:03] normal} 1-0

[Event "-chT Youth Countries 2019"]
[Site "Wuerzburg"]
[Date "2019.10.04"]
[Round "5.6"]
[White "Reuter, Elisa"]
[Black "Metzdorf, Matteo"]
[Result "1-0"]
[ECO "B42"]
[WhiteElo "1873"]
[BlackElo "1862"]
[Annotator "NA"]
[PlyCount "109"]
[EventDate "2019.10.02"]
[EventType "team-tourn"]
[EventRounds "7"]
[EventCountry "GER"]
[SourceTitle "playchess.com"]
[Source "ChessBase"]
[SourceQuality "1"]
[WhiteTeam "Thüringen"]
[BlackTeam "Rheinland-Pfalz"]
[TimeControl "40/5400+30:1800+30"]

1. e4 {[%emt 0:00:00]} c5 {[%emt 0:00:00]} 2. Nf3 {[%emt 0:00:00]} e6 {[%emt 0:00:00]} 3. d4 {[%emt 0:00:00]} cxd4 {[%emt 0:00:00]} 4. Nxd4 {[%emt 0:00:00]} a6 {[%emt 0:00:00]} 5. Bd3 {[%emt 0:00:00]} Nc6 {[%emt 0:00:07]} 6. Nb3 {[%emt 0:00:37]} Qc7 {[%emt 0:01:18]} 7. O-O {[%emt 0:00:55]} Nf6 {[%emt 0:00:55]} 8. f4 {[%emt 0:03:23]} d6 {[%emt 0:05:08]} 9. Be3 {[%emt 0:04:35]} b5 {[%emt 0:15:25]} 10. c3 {[%emt 0:04:43]} Bb7 {[%emt 0:11:09]} 11. N1d2 {[%emt 0:01:00]} Be7 {[%emt 0:04:03]} 12. Qe2 {[%emt 0:02:09]} Rc8 {[%emt 0:01:47]} 13. a4 {[%emt 0:03:39]} b4 {[%emt 0:09:44]} 14. Bxa6 {[%emt 0:05:08]} bxc3 {[%emt 0:06:39]} 15. bxc3 {[%emt 0:00:13]} O-O {[%emt 0:00:35]} 16. Bxb7 {[%emt 0:02:17]} Qxb7 {[%emt 0:00:28]} 17. Rfb1 {[%emt 0:02:03]} Qa8 {[%emt 0:09:49]} 18. h3 {[%emt 0:05:19]} Na5 {[%emt 0:02:57]} 19. Nxa5 {[%emt 0:01:14]} Qxa5 {[%emt 0:00:07]} 20. c4 {[%emt 0:02:07]} Qa8 {[%emt 0:10:49]} 21. Qd3 {[%emt 0:01:48]} d5 {[%emt 0:01:51]} 22. cxd5 {[%emt 0:05:23]} exd5 {[%emt 0:00:15]} 23. e5 {[%emt 0:00:56]} Ne4 {[%emt 0:01:01]} 24. Nxe4 {[%emt 0:02:06]} dxe4 {[%emt 0:00:05]} 25. Qd7 {[%emt 0:02:56]} Rfe8 {[%emt 0:02:53]} 26. Rc1 {[%emt 0:07:23]} Rcd8 {[%emt 0:04:02]} 27. Qc6 {[%emt 0:01:40]} Rd3 {[%emt 0:01:46]} 28. Qxa8 {[%emt 0:00:58]} Rxa8 {[%emt 0:00:02]} 29. Kf2 {[%emt 0:00:25]} g5 {[%emt 0:04:03]} 30. Rc4 {[%emt 0:04:38]} gxf4 {[%emt 0:02:59]} 31. Bxf4 {[%emt 0:00:06]} f5 {[%emt 0:00:07]} 32. exf6 {[%emt 0:03:40]} Bxf6 {[%emt 0:00:09]} 33. Ra2 {[%emt 0:03:20]} Re8 {[%emt 0:02:23]} 34. Ke2 {[%emt 0:02:23]} Rd5 {[%emt 0:02:52]} 35. Rd2 {[%emt 0:02:22]} Rf5 {[%emt 0:00:57]} 36. Ke3 {[%emt 0:04:52]} Ra5 {[%emt 0:00:57]} 37. Rd6 {[%emt 0:04:21]} Bg7 {[%emt 0:00:32]} 38. Rdc6 {[%emt 0:01:41]} Kf7 {[%emt 0:00:31]} 39. Rc7+ {[%emt 0:00:34]} Kg6 {[%emt 0:00:19]} 40. R7c6+ {[%emt 0:01:18]} Kf7 {[%emt 0:00:22]} 41. R6c5 {[%emt 0:32:03]} Raa8 {[%emt 0:07:38]} 42. Rd5 {[%emt 0:00:00]} Ra6 {[%emt 0:05:25]} 43. Rc7+ {[%emt 0:00:00]} Kf6 {[%emt 0:03:55]} 44. Rc4 {[%emt 0:00:00]} Kf7 {[%emt 0:04:01]} 45. a5 {[%emt 0:00:00]} Rea8 {[%emt 0:03:36]} 46. Rcc5 {[%emt 0:00:00]} Re8 {[%emt 0:02:14]} 47. Be5 {[%emt 0:01:18]} Bf8 {[%emt 0:02:08]} 48. Rb5 {[%emt 0:00:37]} Ke6 {[%emt 0:01:06]} 49. Kxe4 {[%emt 0:00:36]} Rc8 {[%emt 0:01:55]} 50. Bf4 {[%emt 0:05:33]} Bg7 {[%emt 0:01:11]} 51. Rdc5 {[%emt 0:00:54]} Rac6 {[%emt 0:01:46]} 52. Rxc6+ {[%emt 0:00:06]} Rxc6 {[%emt 0:00:02]} 53. Rb6 {[%emt 0:00:07]} Kd7 {[%emt 0:00:42]} 54. Rb7+ {[%emt 0:00:09]} Ke6 {[%emt 0:01:20]} 55. Rxg7 {[%emt 0:00:06] normal Kd5+} 1-0